[Event "*** Titled Tuesday Blitz"]
[Site "Chess.com"]
[Date "2020.05.05"]
[Round "5"]
[White "AleksanderHnydiuk"]
[Black "LeonValdes"]
[Result "1-0"]
[WhiteElo "2557"]
[BlackElo "2388"]
[TimeControl "180+1"]
[EndTime "10:59:28 PDT"]
[Termination "AleksanderHnydiuk won on time"]

1. Nf3 {[%clk 0:03:00.9]} 1... Nf6 {[%clk 0:02:59.2]} 2. c4 {[%clk 0:03:00.2]}
2... g6 {[%clk 0:02:56.4]} 3. d4 {[%clk 0:03:00.1]} 3... Bg7 {[%clk 0:02:57.3]}
4. g3 {[%clk 0:03:00.4]} 4... O-O {[%clk 0:02:58.1]} 5. Bg2 {[%clk 0:03:00.7]}
5... d5 {[%clk 0:02:58.6]} 6. cxd5 {[%clk 0:02:59.4]} 6... Nxd5 {[%clk
0:02:59.5]} 7. O-O {[%clk 0:02:59.4]} 7... c5 {[%clk 0:02:54.7]} 8. e4 {[%clk
0:02:37.9]} 8... Nf6 {[%clk 0:02:52.2]} 9. e5 {[%clk 0:02:36.5]} 9... Nd5 {[%clk
0:02:51.5]} 10. dxc5 {[%clk 0:02:36.1]} 10... Nc6 {[%clk 0:02:39.7]} 11. Qe2
{[%clk 0:02:19.3]} 11... Qa5 {[%clk 0:02:31.2]} 12. a3 {[%clk 0:02:01.2]} 12...
Qxc5 {[%clk 0:02:16.8]} 13. b4 {[%clk 0:01:59.8]} 13... Qb6 {[%clk 0:01:55.7]}
14. Bb2 {[%clk 0:01:59.6]} 14... Bf5 {[%clk 0:01:38.3]} 15. Nbd2 {[%clk
0:01:50.2]} 15... Rfd8 {[%clk 0:01:27.7]} 16. Rac1 {[%clk 0:01:47.8]} 16...
Ndxb4 {[%clk 0:01:00.5]} 17. Nc4 {[%clk 0:01:31.4]} 17... Qa6 {[%clk 0:00:56]}
18. axb4 {[%clk 0:01:08.7]} 18... Bd3 {[%clk 0:00:55.3]} 19. Qe3 {[%clk
0:01:08.4]} 19... Bxc4 {[%clk 0:00:53.5]} 20. Rfd1 {[%clk 0:01:00]} 20... Nxb4
{[%clk 0:00:46.6]} 21. Rxd8+ {[%clk 0:00:51.1]} 21... Rxd8 {[%clk 0:00:45.6]}
22. Qc5 {[%clk 0:00:51.6]} 22... Nd3 {[%clk 0:00:42.4]} 23. Qxe7 {[%clk
0:00:47.6]} 23... Rf8 {[%clk 0:00:37.5]} 24. Ra1 {[%clk 0:00:45.1]} 24... Qb5
{[%clk 0:00:28.9]} 25. Bd4 {[%clk 0:00:42.5]} 25... a5 {[%clk 0:00:28.3]} 26.
Nd2 {[%clk 0:00:36.9]} 26... Bd5 {[%clk 0:00:27.6]} 27. Rb1 {[%clk 0:00:35.3]}
27... Qc6 {[%clk 0:00:27.1]} 28. Bxd5 {[%clk 0:00:32.5]} 28... Qxd5 {[%clk
0:00:28]} 29. Be3 {[%clk 0:00:22.9]} 29... b5 {[%clk 0:00:25.8]} 30. Qd6 {[%clk
0:00:17.7]} 30... Qxd6 {[%clk 0:00:22]} 31. exd6 {[%clk 0:00:18.6]} 31... b4
{[%clk 0:00:22.5]} 32. Bb6 {[%clk 0:00:14.7]} 32... a4 {[%clk 0:00:21.8]} 33. d7
{[%clk 0:00:13]} 33... Bf6 {[%clk 0:00:20.6]} 34. Ne4 {[%clk 0:00:11.3]} 34...
Bd8 {[%clk 0:00:20.4]} 35. Bxd8 {[%clk 0:00:07.7]} 35... Rxd8 {[%clk 0:00:21.3]}
36. Rd1 {[%clk 0:00:08]} 36... b3 {[%clk 0:00:18.7]} 37. Rxd3 {[%clk 0:00:07.6]}
37... b2 {[%clk 0:00:18.8]} 38. Nc3 {[%clk 0:00:07.7]} 38... a3 {[%clk 0:00:19]}
39. Rd1 {[%clk 0:00:05.7]} 39... a2 {[%clk 0:00:16.4]} 40. Nxa2 {[%clk
0:00:05.2]} 40... Kg7 {[%clk 0:00:16.1]} 41. Rb1 {[%clk 0:00:04.7]} 41... Rxd7
{[%clk 0:00:16]} 42. Rxb2 {[%clk 0:00:05.1]} 42... Re7 {[%clk 0:00:16.9]} 43.
Kg2 {[%clk 0:00:05.5]} 43... h5 {[%clk 0:00:17.8]} 44. Nc3 {[%clk 0:00:05.7]}
44... Re6 {[%clk 0:00:18.1]} 45. Re2 {[%clk 0:00:05.7]} 45... Rc6 {[%clk
0:00:17.6]} 46. Nd1 {[%clk 0:00:05.8]} 46... Rd6 {[%clk 0:00:17.7]} 47. Ne3
{[%clk 0:00:05.6]} 47... Re6 {[%clk 0:00:17.4]} 48. h4 {[%clk 0:00:05.6]} 48...
Rb6 {[%clk 0:00:16.6]} 49. Kf3 {[%clk 0:00:05.8]} 49... Rf6+ {[%clk 0:00:16.5]}
50. Kg2 {[%clk 0:00:05.4]} 50... Ra6 {[%clk 0:00:16.1]} 51. Nd5 {[%clk
0:00:05.5]} 51... Rd6 {[%clk 0:00:16]} 52. Nf4 {[%clk 0:00:05.6]} 52... Ra6
{[%clk 0:00:15.7]} 53. Re7 {[%clk 0:00:05.8]} 53... Ra5 {[%clk 0:00:15.1]} 54.
Rc7 {[%clk 0:00:05.4]} 54... Rb5 {[%clk 0:00:14.8]} 55. Nd3 {[%clk 0:00:04.4]}
55... Ra5 {[%clk 0:00:14.7]} 56. Nc5 {[%clk 0:00:04.5]} 56... Kf6 {[%clk
0:00:13.3]} 57. Nd7+ {[%clk 0:00:04.4]} 57... Kg7 {[%clk 0:00:13.1]} 58. Nc5
{[%clk 0:00:03.1]} 58... Kf6 {[%clk 0:00:12.8]} 59. Ne4+ {[%clk 0:00:03.2]}
59... Kg7 {[%clk 0:00:12.6]} 60. Ng5 {[%clk 0:00:04.1]} 60... Rf5 {[%clk
0:00:11.7]} 61. f3 {[%clk 0:00:04]} 61... Rf6 {[%clk 0:00:11.4]} 62. Kf2 {[%clk
0:00:03.7]} 62... Rf5 {[%clk 0:00:11.3]} 63. Ke3 {[%clk 0:00:03.8]} 63... Rf6
{[%clk 0:00:11.2]} 64. Ke4 {[%clk 0:00:04]} 64... Rf5 {[%clk 0:00:10.9]} 65. g4
{[%clk 0:00:04.1]} 65... hxg4 {[%clk 0:00:10.7]} 66. fxg4 {[%clk 0:00:05]} 66...
Rf1 {[%clk 0:00:10.6]} 67. Nf3 {[%clk 0:00:05.1]} 67... Ra1 {[%clk 0:00:08.6]}
68. Kf4 {[%clk 0:00:05.1]} 68... Ra4+ {[%clk 0:00:08.6]} 69. Kg3 {[%clk
0:00:04.8]} 69... Ra3 {[%clk 0:00:09]} 70. g5 {[%clk 0:00:05]} 70... Ra4 {[%clk
0:00:09]} 71. Re7 {[%clk 0:00:04.8]} 71... Ra3 {[%clk 0:00:09.1]} 72. Kf4 {[%clk
0:00:04.3]} 72... Ra4+ {[%clk 0:00:09.2]} 73. Re4 {[%clk 0:00:04.1]} 73... Ra7
{[%clk 0:00:09.1]} 74. Rd4 {[%clk 0:00:04.2]} 74... Rb7 {[%clk 0:00:08.9]} 75.
Ne5 {[%clk 0:00:04.4]} 75... Ra7 {[%clk 0:00:09.3]} 76. Rd7 {[%clk 0:00:04.3]}
76... Ra4+ {[%clk 0:00:09.5]} 77. Kg3 {[%clk 0:00:04.5]} 77... Ra3+ {[%clk
0:00:09.6]} 78. Kg2 {[%clk 0:00:04.7]} 78... Ra2+ {[%clk 0:00:09.8]} 79. Kf3
{[%clk 0:00:05]} 79... Ra3+ {[%clk 0:00:10]} 80. Ke4 {[%clk 0:00:05.3]} 80...
Ra4+ {[%clk 0:00:10.2]} 81. Kd3 {[%clk 0:00:05.3]} 81... Ra3+ {[%clk 0:00:10.3]}
82. Kc4 {[%clk 0:00:05.1]} 82... Ra4+ {[%clk 0:00:10.5]} 83. Kb5 {[%clk
0:00:05.4]} 83... Rxh4 {[%clk 0:00:11.4]} 84. Rxf7+ {[%clk 0:00:05.4]} 84... Kg8
{[%clk 0:00:10.7]} 85. Re7 {[%clk 0:00:04.4]} 85... Rg4 {[%clk 0:00:10.7]} 86.
Nxg4 {[%clk 0:00:03.2]} 1-0

[Event "*** Titled Tuesday Blitz"]
[Site "Chess.com"]
[Date "2020.05.05"]
[Round "5"]
[White "CookiesAndIceCream"]
[Black "DACF2905"]
[Result "0-1"]
[WhiteElo "2338"]
[BlackElo "2192"]
[TimeControl "180+1"]
[EndTime "10:59:30 PDT"]
[Termination "DACF2905 won by checkmate"]

1. e4 {[%clk 0:02:34.7]} 1... c5 {[%clk 0:02:58]} 2. Nf3 {[%clk 0:02:33.8]} 2...
e6 {[%clk 0:02:56.3]} 3. d4 {[%clk 0:02:34]} 3... cxd4 {[%clk 0:02:57.2]} 4.
Nxd4 {[%clk 0:02:34.4]} 4... a6 {[%clk 0:02:58.1]} 5. c4 {[%clk 0:02:33.9]} 5...
Nf6 {[%clk 0:02:58.1]} 6. Nc3 {[%clk 0:02:34.1]} 6... Qc7 {[%clk 0:02:57.2]} 7.
Be2 {[%clk 0:02:33.4]} 7... Bb4 {[%clk 0:02:55.6]} 8. Nc2 {[%clk 0:02:33.6]}
8... Bxc3+ {[%clk 0:02:54.4]} 9. bxc3 {[%clk 0:02:33.9]} 9... Nxe4 {[%clk
0:02:52.9]} 10. Qd4 {[%clk 0:02:34.2]} 10... Nf6 {[%clk 0:02:52.6]} 11. Bf4
{[%clk 0:02:34.4]} 11... Qa5 {[%clk 0:02:45.2]} 12. Bd6 {[%clk 0:02:34.1]} 12...
Nc6 {[%clk 0:02:44.9]} 13. Qd3 {[%clk 0:02:33.1]} 13... Qg5 {[%clk 0:02:25.7]}
14. Ne3 {[%clk 0:02:03.9]} 14... Ne5 {[%clk 0:02:21]} 15. Qd4 {[%clk 0:01:53.6]}
15... Nc6 {[%clk 0:02:21.1]} 16. Qd3 {[%clk 0:01:36.7]} 16... Ne5 {[%clk
0:02:18.1]} 17. Qc2 {[%clk 0:01:36.9]} 17... Qg6 {[%clk 0:02:11.3]} 18. Qd1
{[%clk 0:01:22.4]} 18... Nc6 {[%clk 0:02:10.9]} 19. O-O {[%clk 0:01:22.5]} 19...
Ne4 {[%clk 0:02:09.1]} 20. Bd3 {[%clk 0:01:10.6]} 20... f5 {[%clk 0:01:59.6]}
21. Bxe4 {[%clk 0:01:03.5]} 21... fxe4 {[%clk 0:01:59.4]} 22. Ba3 {[%clk
0:00:54.6]} 22... Kf7 {[%clk 0:01:55.6]} 23. Qd6 {[%clk 0:00:51.8]} 23... Re8
{[%clk 0:01:53.7]} 24. f3 {[%clk 0:00:48.1]} 24... Kg8 {[%clk 0:01:52.8]} 25.
fxe4 {[%clk 0:00:48]} 25... h6 {[%clk 0:01:52.4]} 26. Rf4 {[%clk 0:00:35.6]}
26... Kh7 {[%clk 0:01:35.8]} 27. Raf1 {[%clk 0:00:34.2]} 27... e5 {[%clk
0:01:35.4]} 28. Rg4 {[%clk 0:00:33.9]} 28... Qxd6 {[%clk 0:01:35.1]} 29. Bxd6
{[%clk 0:00:33.4]} 29... Nd8 {[%clk 0:00:50.6]} 30. Nd5 {[%clk 0:00:22.3]} 30...
Ne6 {[%clk 0:00:38.4]} 31. Rf7 {[%clk 0:00:19.9]} 31... Kg8 {[%clk 0:00:37.5]}
32. Rf3 {[%clk 0:00:19.3]} 32... Kh7 {[%clk 0:00:34.9]} 33. Bxe5 {[%clk
0:00:19.1]} 33... d6 {[%clk 0:00:34.2]} 34. Bxd6 {[%clk 0:00:19.3]} 34... Ng5
{[%clk 0:00:32.7]} 35. Rxg5 {[%clk 0:00:16.6]} 35... hxg5 {[%clk 0:00:31.6]} 36.
e5 {[%clk 0:00:17.5]} 36... Be6 {[%clk 0:00:23.6]} 37. Nc7 {[%clk 0:00:17.2]}
37... Bxc4 {[%clk 0:00:23.6]} 38. Nxa8 {[%clk 0:00:16.6]} 38... Rxa8 {[%clk
0:00:23.4]} 39. Kf2 {[%clk 0:00:16.7]} 39... Bxa2 {[%clk 0:00:22.9]} 40. Re3
{[%clk 0:00:13.8]} 40... Be6 {[%clk 0:00:22.3]} 41. Kg3 {[%clk 0:00:14]} 41...
Kg6 {[%clk 0:00:22]} 42. Re1 {[%clk 0:00:13.6]} 42... a5 {[%clk 0:00:21.2]} 43.
Ba3 {[%clk 0:00:13.2]} 43... b5 {[%clk 0:00:20.9]} 44. Rb1 {[%clk 0:00:13.3]}
44... Bc4 {[%clk 0:00:21.1]} 45. h3 {[%clk 0:00:13.5]} 45... Kf5 {[%clk
0:00:20.9]} 46. Re1 {[%clk 0:00:13.2]} 46... Ke6 {[%clk 0:00:20.7]} 47. Bd6
{[%clk 0:00:13.2]} 47... Ra6 {[%clk 0:00:19.3]} 48. Kg4 {[%clk 0:00:12.7]} 48...
Rb6 {[%clk 0:00:19.5]} 49. Rb1 {[%clk 0:00:12]} 49... Bd5 {[%clk 0:00:16.9]} 50.
g3 {[%clk 0:00:11.5]} 50... Be4 {[%clk 0:00:16.9]} 51. Rb2 {[%clk 0:00:11.6]}
51... Kd5 {[%clk 0:00:15.9]} 52. Kxg5 {[%clk 0:00:11.6]} 52... g6 {[%clk
0:00:15.6]} 53. Rd2+ {[%clk 0:00:09.7]} 53... Ke6 {[%clk 0:00:14.2]} 54. Re2
{[%clk 0:00:10.6]} 54... Bf5 {[%clk 0:00:14]} 55. Ra2 {[%clk 0:00:10]} 55... a4
{[%clk 0:00:13.1]} 56. Rb2 {[%clk 0:00:09.5]} 56... Bxh3 {[%clk 0:00:12.3]} 57.
Re2 {[%clk 0:00:09.1]} 57... Bf5 {[%clk 0:00:10.4]} 58. Bb4 {[%clk 0:00:09.2]}
58... Rb7 {[%clk 0:00:10.4]} 59. Rf2 {[%clk 0:00:09]} 59... Kxe5 {[%clk
0:00:10.6]} 60. g4 {[%clk 0:00:08.9]} 60... Bd3 {[%clk 0:00:09]} 61. Rf3 {[%clk
0:00:08]} 61... Ke4 {[%clk 0:00:09.1]} 62. Rf4+ {[%clk 0:00:07.8]} 62... Ke3
{[%clk 0:00:09.1]} 63. Bc5+ {[%clk 0:00:07.9]} 63... Kd2 {[%clk 0:00:09.2]} 64.
Bb4 {[%clk 0:00:08.1]} 64... Kc2 {[%clk 0:00:09.2]} 65. Rd4 {[%clk 0:00:08.1]}
65... Bc4 {[%clk 0:00:08.8]} 66. Rd6 {[%clk 0:00:08]} 66... Kb3 {[%clk
0:00:08.5]} 67. Ra6 {[%clk 0:00:08.1]} 67... Rg7 {[%clk 0:00:06.9]} 68. Kf6
{[%clk 0:00:07.9]} 68... Rf7+ {[%clk 0:00:06.6]} 69. Kg5 {[%clk 0:00:08.5]}
69... Rf3 {[%clk 0:00:05.2]} 70. Kxg6 {[%clk 0:00:08.4]} 70... Rg3 {[%clk
0:00:05.4]} 71. g5 {[%clk 0:00:08.7]} 71... Rg2 {[%clk 0:00:05.4]} 72. Kf6
{[%clk 0:00:09]} 72... Ra2 {[%clk 0:00:05.3]} 73. g6 {[%clk 0:00:09.4]} 73... a3
{[%clk 0:00:05.6]} 74. g7 {[%clk 0:00:09.8]} 74... Ra1 {[%clk 0:00:04.6]} 75.
Ke7 {[%clk 0:00:09.1]} 75... a2 {[%clk 0:00:04.6]} 76. Ra3+ {[%clk 0:00:08.8]}
76... Kb2 {[%clk 0:00:04.3]} 77. Kf8 {[%clk 0:00:09.7]} 77... Rf1+ {[%clk
0:00:04.2]} 78. Ke7 {[%clk 0:00:09.3]} 78... a1=Q {[%clk 0:00:04.1]} 79. Rxa1
{[%clk 0:00:09.7]} 79... Kxa1 {[%clk 0:00:04.5]} 80. Bd6 {[%clk 0:00:10.6]}
80... Kb2 {[%clk 0:00:04.5]} 81. Be5 {[%clk 0:00:10.9]} 81... Kb3 {[%clk
0:00:04.5]} 82. Bf6 {[%clk 0:00:10.7]} 82... Re1+ {[%clk 0:00:04.2]} 83. Kf8
{[%clk 0:00:10.4]} 83... Rc1 {[%clk 0:00:04.5]} 84. g8=Q {[%clk 0:00:09.4]}
84... Bxg8 {[%clk 0:00:04.2]} 85. Kxg8 {[%clk 0:00:10.3]} 85... Rxc3 {[%clk
0:00:04]} 86. Kf7 {[%clk 0:00:10.7]} 86... Kc2 {[%clk 0:00:03.8]} 87. Ke6 {[%clk
0:00:11.6]} 87... b4 {[%clk 0:00:04]} 88. Kd5 {[%clk 0:00:11.8]} 88... b3 {[%clk
0:00:04.2]} 89. Kd4 {[%clk 0:00:11.7]} 89... Rc6 {[%clk 0:00:03.6]} 90. Ke4
{[%clk 0:00:12.6]} 90... b2 {[%clk 0:00:03.2]} 91. Ke5 {[%clk 0:00:13.5]} 91...
b1=Q {[%clk 0:00:02.7]} 92. Kd5 {[%clk 0:00:14.4]} 92... Qb5+ {[%clk 0:00:02.6]}
93. Ke4 {[%clk 0:00:13.7]} 93... Rc4+ {[%clk 0:00:03.5]} 94. Bd4 {[%clk
0:00:14.4]} 94... Qc5 {[%clk 0:00:02.9]} 95. Kf3 {[%clk 0:00:13.6]} 95... Qxd4
{[%clk 0:00:03.8]} 96. Kg3 {[%clk 0:00:13.7]} 96... Rc3+ {[%clk 0:00:04]} 97.
Kg2 {[%clk 0:00:13.4]} 97... Qd2+ {[%clk 0:00:03.9]} 98. Kf1 {[%clk 0:00:14.3]}
98... Kb3 {[%clk 0:00:04.3]} 99. Kg1 {[%clk 0:00:14.6]} 99... Rc1# {[%clk
0:00:05.2]} 0-1

[Event "*** Titled Tuesday Blitz"]
[Site "Chess.com"]
[Date "2020.05.05"]
[Round "5"]
[White "afgano29"]
[Black "ama18"]
[Result "1-0"]
[WhiteElo "2703"]
[BlackElo "2494"]
[TimeControl "180+1"]
[EndTime "10:59:40 PDT"]
[Termination "afgano29 won by checkmate"]

1. d4 {[%clk 0:03:00]} 1... Nf6 {[%clk 0:02:56]} 2. c4 {[%clk 0:02:59.8]} 2...
e6 {[%clk 0:02:56]} 3. Nf3 {[%clk 0:03:00.2]} 3... a6 {[%clk 0:02:55.3]} 4. g3
{[%clk 0:02:59.1]} 4... b5 {[%clk 0:02:53.2]} 5. Nbd2 {[%clk 0:02:57.2]} 5... c5
{[%clk 0:02:50]} 6. Bg2 {[%clk 0:02:55.5]} 6... Bb7 {[%clk 0:02:49.8]} 7. dxc5
{[%clk 0:02:41.7]} 7... Bxc5 {[%clk 0:02:49]} 8. a3 {[%clk 0:02:41.6]} 8... bxc4
{[%clk 0:02:47.2]} 9. Nxc4 {[%clk 0:02:39]} 9... d5 {[%clk 0:02:46.5]} 10. Nce5
{[%clk 0:02:21.4]} 10... O-O {[%clk 0:02:45.9]} 11. O-O {[%clk 0:02:18.5]} 11...
Nbd7 {[%clk 0:02:43.6]} 12. b4 {[%clk 0:02:16.5]} 12... Ba7 {[%clk 0:02:39.5]}
13. Bb2 {[%clk 0:02:15.3]} 13... Ne4 {[%clk 0:02:38.7]} 14. e3 {[%clk
0:02:10.4]} 14... Rc8 {[%clk 0:02:35.8]} 15. Nd2 {[%clk 0:02:03.6]} 15... Nc3
{[%clk 0:02:27.1]} 16. Bxc3 {[%clk 0:01:53.7]} 16... Rxc3 {[%clk 0:02:28]} 17.
Nef3 {[%clk 0:01:38.7]} 17... Qb8 {[%clk 0:02:16.1]} 18. Nb3 {[%clk 0:01:37]}
18... Rfc8 {[%clk 0:02:14.2]} 19. Na5 {[%clk 0:01:36.3]} 19... Ba8 {[%clk
0:02:12.7]} 20. Nd2 {[%clk 0:01:32.2]} 20... Ne5 {[%clk 0:02:09.4]} 21. Ndb3
{[%clk 0:01:29.2]} 21... Qb5 {[%clk 0:01:57.2]} 22. Qh5 {[%clk 0:01:20]} 22...
Nd3 {[%clk 0:01:39.1]} 23. Rfd1 {[%clk 0:01:12.8]} 23... Nb2 {[%clk 0:01:31.4]}
24. Bf1 {[%clk 0:01:10.4]} 24... Qa4 {[%clk 0:01:26.4]} 25. Bxa6 {[%clk
0:01:00.5]} 25... Nxd1 {[%clk 0:00:53.2]} 26. Bxc8 {[%clk 0:00:58.7]} 26... Rxc8
{[%clk 0:00:54.1]} 27. Qxd1 {[%clk 0:00:56.6]} 27... Bb6 {[%clk 0:00:47.1]} 28.
Rc1 {[%clk 0:00:54.6]} 28... Rb8 {[%clk 0:00:33.9]} 29. Ra1 {[%clk 0:00:31]}
29... g6 {[%clk 0:00:27.8]} 30. Qc1 {[%clk 0:00:27.3]} 30... d4 {[%clk
0:00:18.6]} 31. Nxd4 {[%clk 0:00:25.3]} 31... Bxa5 {[%clk 0:00:16.8]} 32. bxa5
{[%clk 0:00:26.2]} 32... Qxa5 {[%clk 0:00:17.2]} 33. f3 {[%clk 0:00:17.4]} 33...
e5 {[%clk 0:00:16.9]} 34. Nc2 {[%clk 0:00:15.8]} 34... Bxf3 {[%clk 0:00:15.5]}
35. Rb1 {[%clk 0:00:14.7]} 35... Rxb1 {[%clk 0:00:14.1]} 36. Qxb1 {[%clk
0:00:15.6]} 36... Qd5 {[%clk 0:00:12.1]} 37. Ne1 {[%clk 0:00:14.6]} 37... Be4
{[%clk 0:00:11.6]} 38. Qb2 {[%clk 0:00:13.9]} 38... h5 {[%clk 0:00:10.2]} 39. a4
{[%clk 0:00:13.2]} 39... h4 {[%clk 0:00:10.1]} 40. gxh4 {[%clk 0:00:13]} 40...
Qa5 {[%clk 0:00:07.2]} 41. Qa1 {[%clk 0:00:11.7]} 41... f6 {[%clk 0:00:05.9]}
42. Kf1 {[%clk 0:00:11.5]} 42... Qa6+ {[%clk 0:00:05.2]} 43. Kf2 {[%clk
0:00:11.3]} 43... Kg7 {[%clk 0:00:05.2]} 44. a5 {[%clk 0:00:11.4]} 44... Qc8
{[%clk 0:00:04.9]} 45. Qa3 {[%clk 0:00:09.7]} 45... Qh3 {[%clk 0:00:04.2]} 46.
Ke2 {[%clk 0:00:09.8]} 46... Qxh2+ {[%clk 0:00:04.1]} 47. Kd1 {[%clk 0:00:10.1]}
47... Qxh4 {[%clk 0:00:04.1]} 48. a6 {[%clk 0:00:10.1]} 48... Qg4+ {[%clk
0:00:03.9]} 49. Kd2 {[%clk 0:00:10.2]} 49... Qd7+ {[%clk 0:00:04]} 50. Ke2
{[%clk 0:00:09.6]} 50... Qa7 {[%clk 0:00:03.7]} 51. Nd3 {[%clk 0:00:08.3]} 51...
Bxd3+ {[%clk 0:00:03.7]} 52. Kxd3 {[%clk 0:00:08.4]} 52... g5 {[%clk 0:00:04.5]}
53. Qa5 {[%clk 0:00:06.5]} 53... Kg6 {[%clk 0:00:04.8]} 54. Qb5 {[%clk
0:00:06.5]} 54... f5 {[%clk 0:00:03.3]} 55. Qb7 {[%clk 0:00:06.2]} 55... e4+
{[%clk 0:00:03.8]} 56. Kd2 {[%clk 0:00:03.9]} 56... Qc5 {[%clk 0:00:03.4]} 57.
a7 {[%clk 0:00:04.2]} 57... Qa5+ {[%clk 0:00:03.7]} 58. Kc2 {[%clk 0:00:04.2]}
58... Qa2+ {[%clk 0:00:03.3]} 59. Kc3 {[%clk 0:00:04.4]} 59... Qa3+ {[%clk
0:00:03.6]} 60. Kc4 {[%clk 0:00:03.7]} 60... Qd3+ {[%clk 0:00:03.9]} 61. Kc5
{[%clk 0:00:03.7]} 61... Qxe3+ {[%clk 0:00:04.3]} 62. Kd6 {[%clk 0:00:03.8]}
62... Qd3+ {[%clk 0:00:04.5]} 63. Ke7 {[%clk 0:00:03.3]} 63... Qa3+ {[%clk
0:00:04.2]} 64. Kd7 {[%clk 0:00:03.2]} 64... Qa4+ {[%clk 0:00:04.4]} 65. Qc6+
{[%clk 0:00:03.3]} 65... Qxc6+ {[%clk 0:00:03.4]} 66. Kxc6 {[%clk 0:00:04.2]}
66... e3 {[%clk 0:00:04.3]} 67. a8=Q {[%clk 0:00:04.9]} 67... f4 {[%clk
0:00:04.8]} 68. Qa2 {[%clk 0:00:04.8]} 68... f3 {[%clk 0:00:03.3]} 69. Kd5
{[%clk 0:00:04.1]} 69... e2 {[%clk 0:00:03]} 70. Qd2 {[%clk 0:00:04.5]} 70... g4
{[%clk 0:00:02.8]} 71. Qe1 {[%clk 0:00:04.5]} 71... Kf5 {[%clk 0:00:02.8]} 72.
Kd4 {[%clk 0:00:04.6]} 72... Kf4 {[%clk 0:00:03.7]} 73. Kd3 {[%clk 0:00:04.8]}
73... g3 {[%clk 0:00:04.4]} 74. Qd2+ {[%clk 0:00:05.1]} 74... Kg4 {[%clk
0:00:04.6]} 75. Qe1 {[%clk 0:00:05.4]} 75... g2 {[%clk 0:00:04.3]} 76. Qf2
{[%clk 0:00:05.7]} 76... Kh3 {[%clk 0:00:03.8]} 77. Ke3 {[%clk 0:00:05.7]} 77...
Kh2 {[%clk 0:00:03.7]} 78. Qh4+ {[%clk 0:00:06.1]} 78... Kg1 {[%clk 0:00:03.5]}
79. Qf2+ {[%clk 0:00:07]} 79... Kh1 {[%clk 0:00:03.4]} 80. Qh4+ {[%clk
0:00:06.7]} 80... Kg1 {[%clk 0:00:03.2]} 81. Kxf3 {[%clk 0:00:07.3]} 81... Kf1
{[%clk 0:00:02.5]} 82. Qf2# {[%clk 0:00:07.6]} 1-0